bitfinex-derivatives/quotes_BNBF0:USTF0_20251002
["timestamp","ask_amount","ask_price","bid_price","bid_amount"]
[1759364632376,0.90492815,1030.6,1028.8,0.64323756]
[1759364632576,0.90492815,1030.5,1028.8,0.64323756]
[1759364632775,0.90492815,1030.4,1028.8,0.64323756]
[1759364632976,0.90492815,1030.3,1028.8,0.64323756]
[1759364633277,0.90492815,1030.2,1028.8,0.64323756]
[1759364633479,0.86527895,1030.8,1028.8,0.64323756]
[1759364633779,0.90494729,1030.7,1028.9,0.64323756]
[1759364633979,0.90494729,1030.6,1028.9,0.64323756]
[1759364634180,0.90494729,1030.5,1028.9,0.64323756]
[1759364634475,0.90494729,1030.4,1028.9,0.64323756]
[1759364634675,0.90494729,1030.3,1028.9,0.64323756]
[1759364634876,0.86527895,1030.8,1028.8,0.64323756]
[1759364635175,0.90497545,1030.7,1028.9,0.64323756]
[1759364635374,0.90497545,1030.6,1028.9,0.64323756]
[1759364635577,0.90497545,1030.5,1028.9,0.64323756]
[1759364635775,0.90497545,1030.4,1028.9,0.64323756]
[1759364635979,0.90497545,1030.3,1028.9,0.64323756]
[1759364636179,0.86527895,1030.8,1028.9,0.64323756]
[1759364636478,0.9050136,1030.7,1028.9,0.64323756]
[1759364636676,0.9050136,1030.6,1028.9,0.64323756]
[1759364636877,0.9050136,1030.5,1028.9,0.64323756]
[1759364637080,0.9050136,1030.4,1028.9,0.64323756]
[1759364637281,0.9050136,1030.3,1028.8,0.64323756]
[1759364637480,0.9050136,1030.2,1028.7,0.64323756]
[1759364637677,0.86527895,1030.8,1028.7,0.64323756]
[1759364637880,0.90505921,1030.7,1028.7,0.64323756]
[1759364638080,0.90505921,1030.6,1028.7,0.64323756]
[1759364638279,0.90505921,1030.5,1028.7,0.64323756]
[1759364638580,0.90505921,1030.4,1028.7,0.64323756]
[1759364638779,0.90505921,1030.3,1028.8,0.64323756]
[1759364639082,0.90505921,1030.2,1028.8,0.64323756]
[1759364639276,0.86527895,1030.8,1028.8,0.64323756]
[1759364639481,0.9049437,1030.7,1028.8,0.64323756]
[1759364639677,0.9049437,1030.6,1028.8,0.64323756]
[1759364639982,0.9049437,1030.5,1028.8,0.64323756]
[1759364640277,0.9049437,1030.4,1028.8,0.64323756]
[1759364640485,0.9049437,1030.3,1028.8,0.64323756]
[1759364640677,0.9049437,1030.2,1028.8,0.64323756]
[1759364640883,0.86527895,1030.8,1028.8,0.64323756]
[1759364641080,0.90493705,1030.7,1028.8,0.64323756]
[1759364641284,0.90493705,1030.6,1028.8,0.64323756]
[1759364641585,0.90493705,1030.5,1028.7,0.64323756]
[1759364641781,0.90493705,1030.4,1028.7,0.64323756]
[1759364642085,0.90493705,1030.3,1028.7,0.64323756]
[1759364642282,0.90493705,1030.2,1028.6,0.64323756]
[1759364642481,0.90487933,1030.1,1028.6,0.64323756]
[1759364642680,0.86527895,1030.9,1028.6,0.64323756]
[1759364642985,0.90488382,1030.8,1028.6,0.64323756]
[1759364643184,0.90488382,1030.7,1028.6,0.64323756]
[1759364643384,0.90488382,1030.6,1028.6,0.64323756]
[1759364643581,0.90488382,1030.5,1028.6,0.64323756]
[1759364643783,0.90488382,1030.4,1028.6,0.64323756]
[1759364643982,0.90488382,1030.3,1028.7,0.64323756]
[1759364644183,0.16882181,1031.4,1028.8,0.64323756]
[1759364644184,0.86527895,1030.9,1028.8,0.64323756]
[1759364644385,0.90462727,1030.8,1028.8,0.64323756]
[1759364644586,0.90462727,1030.7,1028.8,0.64323756]
[1759364644886,0.90462727,1030.6,1028.8,0.64323756]
[1759364645082,0.90462727,1030.5,1028.8,0.64323756]
[1759364645287,0.90462727,1030.4,1028.8,0.64323756]
[1759364645487,0.90462727,1030.3,1028.9,0.64323756]
[1759364645686,0.86527895,1030.9,1028.9,0.64323756]
[1759364645887,0.90456824,1030.8,1028.9,0.64323756]
[1759364646083,0.90456824,1030.7,1028.9,0.64323756]
[1759364646387,0.90456824,1030.6,1028.9,0.64323756]
[1759364646592,0.90456824,1030.5,1028.9,0.64323756]
[1759364646789,0.90456824,1030.4,1028.9,0.64323756]
[1759364646992,0.90456824,1030.3,1028.9,0.64323756]
[1759364647193,0.86527895,1031.0,1028.9,0.64323756]
[1759364647494,0.90458222,1030.9,1028.9,0.64323756]
[1759364647692,0.90458222,1030.8,1028.9,0.64323756]
[1759364647890,0.90458222,1030.7,1028.9,0.64323756]
[1759364648090,0.90458222,1030.6,1028.9,0.64323756]
[1759364648289,0.90458222,1030.5,1028.9,0.64323756]
[1759364648488,0.90458222,1030.4,1028.9,0.64323756]
[1759364648792,0.9046417,1030.3,1028.9,0.64323756]
[1759364648991,0.86527895,1031.0,1028.9,0.64323756]
[1759364649194,0.90463973,1030.9,1028.9,0.64323756]
[1759364649392,0.90463973,1030.8,1028.9,0.64323756]
[1759364649589,0.90463973,1030.7,1028.9,0.64323756]
[1759364649789,0.90463973,1030.6,1028.9,0.64323756]
[1759364650094,0.90463973,1030.5,1028.9,0.64323756]
[1759364650290,0.90463973,1030.4,1028.9,0.64323756]
[1759364650496,0.86527895,1031.0,1028.9,0.64323756]
[1759364650791,0.90485694,1030.9,1028.9,0.64323756]
[1759364651096,0.90485694,1030.8,1028.9,0.64323756]
[1759364651291,0.90485694,1030.7,1028.9,0.64323756]
[1759364651591,0.90485694,1030.6,1028.9,0.64323756]
[1759364651792,0.90485694,1030.5,1028.9,0.64323756]
[1759364651995,0.90485694,1030.4,1028.9,0.64323756]
[1759364652195,0.86527895,1031.0,1028.9,0.64323756]
[1759364652397,0.90509815,1030.9,1028.9,0.64323756]
[1759364652591,0.90509815,1030.8,1028.9,0.64323756]
[1759364652796,0.90509815,1030.7,1028.9,0.64323756]
[1759364652995,0.90509815,1030.6,1028.9,0.64323756]
[1759364653292,0.90509815,1030.5,1029.0,0.64323756]
[1759364653496,0.90509815,1030.4,1029.0,0.64323756]
[1759364653697,0.86527895,1031.2,1028.9,0.64323756]
[1759364653891,0.90576596,1031.1,1028.9,0.64323756]
[1759364654095,0.90576596,1031.0,1028.9,0.64323756]
[1759364654293,0.90576596,1030.9,1028.9,0.64323756]
[1759364654592,0.90576596,1030.8,1028.9,0.64323756]
[1759364654795,0.90576596,1030.7,1028.9,0.64323756]
[1759364654994,0.90576596,1030.6,1028.9,0.64323756]
[1759364655293,0.90595826,1030.5,1028.9,0.64323756]
[1759364655495,0.90595826,1030.4,1028.9,0.64323756]
[1759364655696,0.86527895,1031.1,1028.9,0.64323756]
[1759364655891,0.9059408,1031.0,1028.9,0.64323756]
[1759364656090,0.9059408,1030.9,1028.9,0.64323756]
[1759364656296,0.9059408,1030.8,1028.9,0.64323756]
[1759364656490,0.9059408,1030.7,1028.9,0.64323756]
[1759364656695,0.9059408,1030.6,1028.9,0.64323756]
[1759364656894,0.9059408,1030.5,1028.9,0.64323756]
[1759364657093,0.9059408,1030.4,1028.9,0.64323756]
[1759364657293,0.86527895,1031.1,1028.9,0.64323756]
[1759364657497,0.90588803,1031.0,1028.9,0.64323756]
[1759364657694,0.90588803,1030.9,1028.9,0.64323756]
[1759364657993,0.90588803,1030.8,1028.9,0.64323756]
[1759364658293,0.90588803,1030.7,1028.9,0.64323756]
[1759364658492,0.90588803,1030.6,1028.9,0.64323756]
[1759364658797,0.90588803,1030.5,1028.9,0.64323756]
[1759364658997,0.90588803,1030.4,1028.9,0.64323756]
[1759364659197,0.90588803,1030.3,1028.9,0.64323756]
[1759364659394,0.86527895,1031.1,1028.9,0.64323756]
[1759364659594,0.90593036,1031.0,1028.8,0.64323756]
[1759364659794,0.86527895,1030.8,1029.0,0.64323756]
[1759364659997,1.77120931,1030.7,1028.9,0.64323756]
[1759364660198,0.90593036,1030.6,1028.9,0.64323756]
[1759364661495,0.90593036,1030.5,1028.9,0.64323756]
[1759364661695,0.90593036,1030.4,1028.9,0.64323756]
[1759364661999,0.90593036,1030.3,1028.9,0.64323756]
[1759364662200,0.90593036,1030.2,1028.9,0.64323756]
[1759364662399,0.86527895,1030.8,1028.9,0.64323756]
[1759364662600,0.90581251,1030.7,1028.9,0.64323756]
[1759364662800,0.90581251,1030.6,1028.9,0.64323756]
[1759364663098,0.90581251,1030.5,1028.9,0.64323756]
[1759364663296,0.90581251,1030.4,1028.9,0.64323756]
[1759364663501,0.90581251,1030.3,1028.9,0.64323756]
[1759364663701,0.86527895,1030.9,1028.9,0.64323756]
[1759364663899,0.90580449,1030.8,1028.9,0.64323756]
[1759364664198,0.90580449,1030.7,1028.8,0.64323756]
[1759364664399,0.90580449,1030.6,1028.8,0.64323756]
[1759364664602,0.86527895,1031.0,1028.8,0.64323756]
[1759364664603,0.90580449,1030.5,1028.8,0.64323756]
[1759364664899,0.90580449,1030.4,1028.8,0.64323756]
[1759364665199,0.90580449,1030.3,1028.9,0.64323756]
[1759364665401,0.86527895,1031.0,1028.9,0.64323756]
[1759364665600,0.9060213,1030.9,1028.9,0.64323756]
[1759364665801,0.9060213,1030.8,1028.9,0.64323756]
[1759364666001,0.9060213,1030.7,1028.9,0.64323756]
[1759364666201,0.9060213,1030.6,1028.9,0.64323756]
[1759364666499,0.9060213,1030.5,1028.9,0.64323756]
[1759364666699,0.9060213,1030.4,1028.9,0.64323756]
[1759364666902,0.9060213,1030.3,1028.9,0.64323756]
[1759364667102,0.86527895,1030.9,1028.9,0.64323756]
[1759364667301,0.90624422,1030.8,1028.9,0.64323756]
[1759364667501,0.90624422,1030.7,1028.8,0.64323756]
[1759364667700,0.90624422,1030.6,1028.8,0.64323756]
[1759364667899,0.90624422,1030.5,1028.8,0.64323756]
[1759364668100,0.90624422,1030.4,1028.8,0.64323756]
[1759364668301,0.90624422,1030.3,1028.8,0.64323756]
[1759364668598,0.86527895,1031.1,1028.8,0.64323756]
[1759364668801,0.90668478,1031.0,1028.8,0.64323756]
[1759364669004,0.90668478,1030.9,1028.8,0.64323756]
[1759364669299,0.90668478,1030.8,1028.9,0.64323756]
[1759364669501,0.90668478,1030.7,1028.9,0.64323756]
[1759364669700,0.90668478,1030.6,1028.9,0.64323756]
[1759364669904,0.90668478,1030.5,1028.9,0.64323756]
[1759364670204,0.90668478,1030.4,1028.8,0.64323756]
[1759364670405,0.86527895,1031.0,1028.9,0.64323756]
[1759364670406,0.90668478,1030.3,1028.9,0.64323756]
[1759364670602,0.86527895,1031.0,1028.9,0.64323756]
[1759364670902,0.90740913,1030.9,1028.9,0.64323756]
[1759364671101,0.90740913,1030.8,1028.9,0.64323756]
[1759364671401,0.90740913,1030.7,1028.9,0.64323756]
[1759364671602,0.90740913,1030.6,1028.9,0.64323756]
[1759364671806,0.90740913,1030.5,1028.9,0.64323756]
[1759364672005,0.90740913,1030.4,1028.9,0.64323756]
[1759364672202,0.90740913,1030.3,1028.9,0.64323756]
[1759364672406,0.86527895,1031.1,1028.9,0.64323756]
[1759364672606,0.90824419,1031.0,1028.9,0.64323756]
[1759364672906,0.86527895,1031.1,1028.9,0.64323756]
[1759364672907,0.90824419,1030.9,1028.9,0.64323756]
[1759364673207,0.90824419,1030.8,1029.0,0.64323756]
[1759364673503,0.90824419,1030.7,1028.9,0.64323756]
[1759364673702,0.90824419,1030.6,1028.9,0.64323756]
[1759364674005,0.90824419,1030.5,1029.0,0.64323756]
[1759364674206,0.90824419,1030.4,1029.0,0.64323756]
[1759364674402,0.90824419,1030.3,1029.0,0.64323756]
[1759364674604,0.86527895,1031.1,1029.0,0.64323756]
[1759364674906,0.9093974,1031.0,1029.0,0.64323756]
[1759364675104,0.9093974,1030.9,1029.0,0.64323756]
[1759364675408,0.9093974,1030.8,1029.0,0.64323756]
[1759364675609,0.9093974,1030.7,1029.0,0.64323756]
[1759364675810,0.9093974,1030.6,1029.0,0.64323756]
[1759364676110,0.9093974,1030.5,1029.0,0.64323756]
[1759364676307,0.9093974,1030.4,1029.0,0.64323756]
[1759364676509,0.9093974,1030.3,1029.0,0.64323756]
[1759364676708,0.9093974,1030.2,1029.0,0.64323756]
[1759364676910,0.86527895,1030.9,1029.1,0.64323756]
[1759364677110,0.9102434,1030.8,1029.1,0.64323756]
[1759364677310,0.9102434,1030.7,1029.1,0.64323756]
[1759364677507,0.9102434,1030.6,1029.1,0.64323756]
[1759364677708,0.9102434,1030.5,1029.1,0.64323756]
[1759364678006,0.9102434,1030.4,1029.1,0.64323756]
[1759364678210,0.9102434,1030.3,1029.1,0.64323756]
[1759364678511,0.9102434,1030.2,1029.1,0.64323756]
[1759364678706,0.86527895,1030.8,1029.1,0.64323756]
[1759364678909,0.91120332,1030.7,1029.1,0.64323756]
[1759364679108,0.91120332,1030.6,1029.1,0.64323756]
[1759364679312,0.91120332,1030.5,1029.2,0.64323756]
[1759364679510,0.91120332,1030.4,1029.2,0.64323756]
[1759364679811,0.91120332,1030.3,1029.2,0.64323756]
[1759364680008,0.91120332,1030.2,1029.2,0.64323756]
[1759364680212,0.86527895,1030.8,1029.2,0.64323756]
[1759364680509,0.91159164,1030.7,1029.2,0.64323756]
[1759364680810,0.91159164,1030.6,1029.4,0.64323756]
[1759364681008,0.91159164,1030.5,1029.4,0.64323756]
[1759364681212,0.91159164,1030.4,1029.4,0.64323756]
[1759364681413,0.91159164,1030.3,1029.5,0.64323756]
[1759364681614,0.86527895,1030.7,1029.5,0.64323756]
[1759364681909,0.91163996,1030.6,1029.5,0.64323756]
[1759364682116,0.91163996,1030.5,1029.5,0.64323756]
[1759364682314,0.91163996,1030.4,1029.5,0.64323756]
[1759364682513,0.91163996,1030.3,1029.5,0.64323756]
[1759364682715,0.86527895,1030.8,1029.5,0.64323756]
[1759364683014,0.91175234,1030.7,1029.5,0.64323756]
[1759364683310,0.91175234,1030.6,1029.5,0.64323756]
[1759364683615,0.91175234,1030.5,1029.5,0.64323756]
[1759364683910,0.91175234,1030.4,1029.5,0.64323756]
[1759364684114,0.91175234,1030.3,1029.5,0.64323756]
[1759364684312,0.86527895,1030.7,1029.5,0.64323756]
[1759364684514,0.9116688,1030.6,1029.5,0.64323756]
[1759364684715,0.9116688,1030.5,1029.5,0.64323756]
[1759364685011,0.9116688,1030.4,1029.5,0.64323756]
[1759364685212,0.9116688,1030.3,1029.5,0.64323756]
[1759364685411,0.86527895,1030.7,1029.5,0.64323756]
[1759364685715,0.91174266,1030.6,1029.5,0.64323756]
[1759364685912,0.91174266,1030.5,1029.5,0.64323756]
[1759364686111,0.91174266,1030.4,1029.5,0.64323756]
[1759364686312,0.91174266,1030.3,1029.5,0.64323756]
[1759364686610,0.86527895,1030.7,1029.5,0.64323756]
[1759364686811,0.91181023,1030.6,1029.5,0.64323756]
[1759364687015,0.91181023,1030.5,1029.5,0.64323756]
[1759364687215,0.91181023,1030.4,1029.5,0.64323756]
[1759364687415,0.91181023,1030.3,1029.5,0.64323756]
[1759364687615,0.86527895,1030.8,1029.5,0.64323756]
[1759364687815,1.7771201,1030.7,1029.6,0.64323756]
[1759364688015,0.91184115,1030.6,1029.6,0.64323756]
[1759364688214,0.91184115,1030.5,1029.6,0.64323756]
[1759364688511,0.91184115,1030.4,1029.5,0.64323756]
[1759364688713,0.91184115,1030.3,1029.6,0.64323756]
[1759364688913,0.86527895,1030.7,1029.6,0.64323756]
[1759364689112,0.91185863,1030.6,1029.6,0.64323756]
[1759364689312,0.91185863,1030.5,1029.6,0.64323756]
[1759364689516,0.91185863,1030.4,1029.6,0.64323756]
[1759364689714,0.91185863,1030.3,1029.6,0.64323756]
[1759364689917,0.86527895,1030.7,1029.6,0.64323756]
[1759364690215,0.91189593,1030.6,1029.6,0.64323756]
[1759364690514,0.91189593,1030.5,1029.5,0.64323756]
[1759364690817,0.91189593,1030.4,1029.5,0.64323756]
[1759364691016,0.91189593,1030.3,1029.5,0.64323756]
[1759364691213,0.86527895,1030.7,1029.5,0.64323756]
[1759364691418,0.91180202,1030.6,1029.5,0.64323756]
[1759364691619,0.91180202,1030.5,1029.5,1.49695752]
[1759364691818,0.86527895,1030.9,1029.7,0.64323756]
[1759364692019,0.91171427,1030.8,1029.7,0.64323756]
[1759364692216,0.91171427,1030.7,1029.7,0.64323756]
[1759364692415,0.91171427,1030.6,1029.7,0.64323756]
[1759364692617,0.91171427,1030.5,1029.7,0.64323756]
[1759364692814,0.86527895,1030.9,1029.7,0.64323756]
[1759364693018,0.91146136,1030.8,1029.7,0.64323756]
[1759364693320,0.91146136,1030.7,1029.7,0.64323756]
[1759364693620,0.91146136,1030.6,1029.7,0.64323756]
[1759364693920,0.91146136,1030.5,1029.7,0.64323756]
[1759364694117,0.86527895,1030.9,1029.7,0.64323756]
[1759364694322,0.91106467,1030.8,1029.7,0.64323756]
[1759364694517,0.91106467,1030.7,1029.7,0.64323756]
[1759364694717,0.91106467,1030.6,1029.7,0.64323756]
[1759364695021,0.16882181,1031.4,1029.4,0.64323756]
[1759364695317,0.91082254,1031.3,1029.4,0.64323756]
[1759364695521,0.91082254,1031.2,1029.4,0.64323756]
[1759364695720,0.91082254,1031.1,1029.4,0.64323756]
[1759364695916,0.91082254,1031.0,1029.4,0.64323756]
[1759364696117,0.91082254,1030.9,1029.4,0.64323756]
[1759364696315,0.91082254,1030.8,1029.4,0.64323756]
[1759364696520,0.91082254,1030.7,1029.4,0.64323756]
[1759364696722,0.16882181,1031.4,1029.4,0.64323756]
[1759364697023,0.91061258,1031.3,1029.4,0.64323756]
[1759364697215,0.91061258,1031.2,1029.4,0.64323756]
[1759364697421,0.91061258,1031.1,1029.4,0.64323756]
[1759364697717,0.91061258,1031.0,1029.4,0.64323756]
[1759364697921,0.91061258,1030.9,1029.4,0.64323756]
[1759364698120,0.91061258,1030.8,1029.4,0.64323756]
[1759364698320,0.91061258,1030.7,1029.4,0.64323756]
[1759364698618,0.16882181,1031.4,1029.3,0.64323756]
[1759364698821,0.91036662,1031.3,1029.3,0.64323756]
[1759364699121,0.91036662,1031.2,1029.4,0.64323756]
[1759364699321,0.91036662,1031.1,1029.3,0.64323756]
[1759364699519,0.91036662,1031.0,1029.3,0.64323756]
[1759364699723,0.91036662,1030.9,1029.3,0.64323756]
[1759364699924,0.91036662,1030.8,1029.3,0.64323756]
[1759364700219,0.91036662,1030.7,1029.4,0.64323756]
[1759364700424,0.16882181,1031.4,1029.4,0.64323756]
[1759364700620,0.91028174,1031.3,1029.4,0.64323756]
[1759364700818,0.91028174,1031.2,1029.4,0.64323756]
[1759364701018,0.91028174,1031.1,1029.4,0.64323756]
[1759364701219,0.91028174,1031.0,1029.4,0.64323756]
[1759364701522,0.91028174,1030.9,1029.4,0.64323756]
[1759364701725,0.91028174,1030.8,1029.4,0.64323756]
[1759364701924,0.91028174,1030.7,1029.4,0.64323756]
[1759364702123,0.91028174,1030.6,1029.4,0.64323756]
[1759364702321,0.16882181,1031.4,1029.4,0.64323756]
[1759364702520,0.91013385,1031.3,1029.4,0.64323756]
[1759364702821,0.91013385,1031.2,1029.4,0.64323756]
[1759364703121,0.91013385,1031.1,1029.4,0.64323756]
[1759364703421,0.86527895,1030.9,1029.5,0.64323756]
[1759364703625,0.91013385,1030.8,1029.5,0.64323756]
[1759364705625,0.91013385,1030.8,1029.3,0.64323756]
[1759364705926,0.86527895,1030.3,1028.9,0.64323756]
[1759364706124,0.91013385,1030.2,1028.9,0.64323756]
[1759364706328,0.91013385,1030.1,1028.9,0.64323756]
[1759364706525,0.91013385,1030.0,1028.9,0.64323756]
[1759364706828,0.91013385,1029.9,1028.7,0.64323756]
[1759364707025,0.91013385,1029.8,1028.7,0.64323756]
[1759364707226,0.91013385,1029.7,1028.7,0.64323756]
[1759364707425,0.86527895,1030.1,1028.7,0.64323756]
[1759364707625,0.90989064,1030.0,1028.7,0.64323756]
[1759364707827,0.90989064,1029.9,1028.7,0.64323756]
[1759364708027,0.90989064,1029.8,1028.7,0.64323756]
[1759364708329,0.90989064,1029.7,1028.7,0.64323756]
[1759364708525,0.86527895,1030.2,1028.7,0.64323756]
[1759364708726,0.90945983,1030.1,1028.7,0.64323756]
[1759364709026,0.90945983,1030.0,1028.7,0.64323756]
[1759364709326,0.90945983,1029.9,1028.6,0.64323756]
[1759364709530,0.90945983,1029.8,1028.6,0.64323756]
[1759364709728,0.86527895,1030.3,1028.6,0.64323756]
[1759364709926,0.90906684,1030.2,1028.6,0.64323756]
[1759364710126,0.90906684,1030.1,1028.6,0.64323756]
[1759364710427,0.90906684,1030.0,1028.6,0.64323756]
[1759364710627,0.90906684,1029.9,1028.6,0.64323756]
[1759364710930,0.90906684,1029.8,1028.6,0.64323756]
[1759364711131,0.86527895,1030.3,1028.6,0.64323756]
[1759364711331,0.90840191,1030.2,1028.6,0.64323756]
[1759364711628,0.90840191,1030.1,1028.6,0.64323756]
[1759364711833,0.90840191,1030.0,1028.6,0.64323756]
[1759364712031,0.90840191,1029.9,1028.6,0.64323756]
[1759364712230,0.90840191,1029.8,1028.5,0.64323756]
[1759364712533,0.86527895,1030.3,1028.5,0.64323756]
[1759364712833,0.90811921,1030.2,1028.5,0.64323756]
[1759364713032,0.90811921,1030.1,1028.5,0.64323756]
[1759364713233,0.90811921,1030.0,1028.5,0.64323756]
[1759364713428,0.90811921,1029.9,1028.5,0.64323756]
[1759364713630,0.90811921,1029.8,1028.5,0.64323756]
[1759364713930,0.86527895,1030.3,1028.5,0.64323756]
[1759364714230,0.90792045,1030.2,1028.5,0.64323756]
[1759364714429,0.90792045,1030.1,1028.5,0.64323756]
[1759364714628,0.90792045,1030.0,1028.5,0.64323756]
[1759364714833,0.90792045,1029.9,1028.5,0.64323756]
[1759364715032,0.90792045,1029.8,1028.5,0.64323756]
[1759364715333,0.86527895,1030.4,1028.5,0.64323756]
[1759364715535,0.907436,1030.3,1028.5,0.64323756]
[1759364715834,0.907436,1030.2,1028.5,0.64323756]
[1759364716034,0.907436,1030.1,1028.5,0.64323756]
[1759364716231,0.907436,1030.0,1028.5,0.64323756]
[1759364716435,0.907436,1029.9,1028.4,0.64323756]
[1759364716734,0.907436,1029.8,1028.4,0.64323756]
[1759364716935,0.86527895,1030.5,1028.4,0.64323756]
[1759364717137,0.9072166,1030.4,1028.4,0.64323756]
[1759364717335,0.9072166,1030.3,1028.4,0.64323756]
[1759364717536,0.9072166,1030.2,1028.4,0.64323756]
[1759364717842,0.9072166,1030.1,1028.6,0.64323756]
[1759364718134,0.9072166,1030.0,1028.6,0.64323756]
[1759364718336,0.9072166,1029.9,1028.6,0.64323756]
[1759364718634,0.86527895,1030.3,1028.6,0.64323756]
[1759364718832,0.9068321,1030.2,1028.6,0.64323756]
[1759364719033,0.9068321,1030.1,1028.6,0.64323756]
[1759364719235,0.9068321,1030.0,1028.6,0.64323756]
[1759364719536,0.9068321,1029.9,1028.6,0.64323756]
[1759364719831,0.86527895,1030.3,1028.6,0.64323756]
[1759364720036,0.90672456,1030.2,1028.6,0.64323756]
[1759364720233,0.90672456,1030.1,1028.6,0.64323756]
[1759364720436,0.90672456,1030.0,1028.7,0.64323756]
[1759364720636,0.86527895,1030.6,1028.7,0.64323756]
[1759364720833,0.90654838,1030.5,1028.7,0.64323756]
[1759364721036,0.90654838,1030.4,1028.7,0.64323756]
[1759364721233,0.90654838,1030.3,1028.7,0.64323756]
[1759364721433,0.90654838,1030.2,1028.7,0.64323756]
[1759364721737,0.90654838,1030.1,1028.7,0.64323756]
[1759364721939,0.90654838,1030.0,1028.7,0.64323756]
[1759364722238,0.86527895,1030.6,1028.7,0.64323756]
[1759364722439,0.90646105,1030.5,1028.7,0.64323756]
[1759364722637,0.90646105,1030.4,1028.7,0.64323756]
[1759364722842,1.77174,1030.3,1028.6,0.64323756]
[1759364723037,0.90646105,1030.2,1028.6,0.64323756]
[1759364724043,0.90646105,1030.2,1028.4,0.64323756]
[1759364724243,0.90646105,1030.1,1028.4,0.64323756]
[1759364724443,0.90646105,1030.0,1028.4,0.64323756]
[1759364724643,0.90646105,1029.9,1028.4,0.64323756]
[1759364724840,0.90646105,1029.8,1028.4,0.64323756]
[1759364725143,0.86527895,1030.4,1028.4,0.64323756]
[1759364725347,0.9061833,1030.3,1028.4,0.64323756]
[1759364725648,0.9061833,1030.2,1028.2,1.02263765]
[1759364725847,0.9061833,1030.1,1028.4,0.6454722]
[1759364726048,0.9061833,1030.0,1028.4,0.6454722]
[1759364726249,0.9061833,1029.9,1028.4,0.6454722]
[1759364726549,0.9061833,1029.8,1028.4,0.6454722]
[1759364726845,0.86527895,1030.4,1028.4,0.6454722]
[1759364727045,0.90604204,1030.3,1028.4,0.6454722]
[1759364727349,0.86527895,1030.4,1028.4,0.6454722]
[1759364727350,0.90604204,1030.2,1028.4,0.6454722]
[1759364727649,0.90604204,1030.1,1028.4,0.6454722]
[1759364727849,0.90604204,1030.0,1028.4,0.6454722]
[1759364728047,0.90604204,1029.9,1028.4,0.6454722]
[1759364728250,0.90604204,1029.8,1028.4,0.6454722]
[1759364728447,0.86527895,1030.4,1028.4,0.6454722]
[1759364728648,0.90576949,1030.3,1028.4,0.6454722]
[1759364728848,0.90576949,1030.2,1028.4,0.6454722]
[1759364729153,0.90576949,1030.1,1028.4,0.6454722]
[1759364729352,0.90576949,1030.0,1028.4,0.6454722]
[1759364729552,0.90576949,1029.9,1028.4,0.6454722]
[1759364729753,0.90576949,1029.8,1028.4,0.6454722]
[1759364730052,0.86527895,1030.4,1028.4,0.6454722]
[1759364730250,0.90550825,1030.3,1028.4,0.6454722]
[1759364730449,0.90550825,1030.2,1028.4,0.6454722]
[1759364730648,0.90550825,1030.1,1028.4,0.6454722]
[1759364730852,0.90550825,1030.0,1028.4,0.6454722]
[1759364731151,0.90550825,1029.9,1028.3,0.6454722]
[1759364731352,0.90550825,1029.8,1028.3,0.6454722]
[1759364731552,0.86527895,1030.4,1028.3,0.6454722]
[1759364731853,0.90539158,1030.3,1028.3,0.6454722]
[1759364732053,0.90539158,1030.2,1028.3,0.6454722]
[1759364732350,0.90539158,1030.1,1028.3,0.6454722]
[1759364732554,0.90539158,1030.0,1028.3,0.6454722]
[1759364732747,0.90539158,1029.9,1028.3,0.6454722]
[1759364732953,0.90539158,1029.8,1028.3,0.6454722]
[1759364733247,0.86527895,1030.4,1028.3,0.6454722]
[1759364733451,0.90518075,1030.3,1028.3,0.6454722]
[1759364733652,0.90518075,1030.2,1028.3,0.6454722]
[1759364733849,0.90518075,1030.1,1028.4,0.6454722]
[1759364734049,0.90518075,1030.0,1028.4,0.6454722]
[1759364734251,0.90518075,1029.9,1028.4,0.6454722]
[1759364734449,0.90518075,1029.8,1028.4,0.6454722]
[1759364734650,0.86527895,1030.3,1028.4,0.6454722]
[1759364734950,0.90506504,1030.2,1028.4,0.6454722]
[1759364735150,0.90506504,1030.1,1028.4,0.6454722]
[1759364735354,0.86527895,1030.3,1028.4,0.6454722]
[1759364735355,0.90498064,1030.0,1028.4,0.6454722]
[1759364735554,0.90498064,1029.9,1028.3,0.6454722]
[1759364735854,0.90498064,1029.8,1028.3,0.6454722]
[1759364736055,0.86527895,1030.4,1028.3,0.6454722]
[1759364736253,0.90490084,1030.3,1028.3,0.6454722]
[1759364736553,0.90490084,1030.2,1028.3,0.6454722]
[1759364736752,0.90490084,1030.1,1028.3,0.6454722]
[1759364736951,0.90490084,1030.0,1028.3,0.6454722]
[1759364737154,0.90490084,1029.9,1028.3,0.6454722]
[1759364737353,0.90490084,1029.8,1028.3,0.6454722]
[1759364737555,0.86527895,1030.4,1028.3,0.6454722]
[1759364737755,0.9048264,1030.3,1028.3,0.6454722]
[1759364738049,0.9048264,1030.2,1028.3,0.6454722]
[1759364738254,0.9048264,1030.1,1028.3,0.6454722]
[1759364738554,0.9048264,1030.0,1028.3,0.6454722]
[1759364738750,0.9048264,1029.9,1028.3,0.6454722]
[1759364738953,0.9048264,1029.8,1028.3,0.6454722]
[1759364739250,0.86527895,1030.4,1028.3,0.6454722]
[1759364739454,0.90467981,1030.3,1028.3,0.6454722]
[1759364739655,0.90467981,1030.2,1028.3,0.6454722]
[1759364739953,0.90467981,1030.1,1028.3,0.6454722]
[1759364740153,0.90467981,1030.0,1028.3,0.6454722]
[1759364740352,0.90467981,1029.9,1028.3,0.6454722]
[1759364740555,0.90467981,1029.8,1028.3,0.6454722]
[1759364740753,0.86527895,1030.4,1028.3,0.6454722]
[1759364740956,0.90462232,1030.3,1028.3,0.64422518]
[1759364741253,0.90462232,1030.2,1028.3,0.64422518]
[1759364741452,0.90462232,1030.1,1028.3,0.64422518]
[1759364741653,0.90462232,1030.0,1028.3,0.64422518]
[1759364741951,0.90462232,1029.9,1028.3,0.64422518]
[1759364742153,0.86527895,1030.7,1028.4,0.64422518]
[1759364742352,0.86527895,1030.5,1028.5,0.64422518]
[1759364742557,0.90454078,1030.4,1028.5,0.64422518]
[1759364743354,0.90454078,1030.4,1028.4,0.64422518]
[1759364743652,0.90454078,1030.3,1028.4,0.64422518]
[1759364743856,0.90454078,1030.2,1028.4,0.64422518]
[1759364746558,1.76981973,1030.2,1028.3,0.64422518]
[1759364746758,0.90454078,1030.1,1028.4,0.64422518]
[1759364747058,0.86527895,1030.3,1028.2,1.02263765]
[1759364747059,0.90454078,1030.0,1028.3,0.64422518]
[1759364747259,0.90454078,1029.9,1028.3,0.64422518]
[1759364747458,0.90454078,1029.8,1028.3,0.64422518]
[1759364747660,0.90454078,1029.7,1028.3,0.64422518]
[1759364747860,0.86527895,1030.3,1028.3,0.64422518]
[1759364748161,0.90542799,1030.2,1028.3,0.64422518]
[1759364748357,0.90542799,1030.1,1028.3,0.64422518]
[1759364748562,0.90542799,1030.0,1028.3,0.64422518]
[1759364748760,0.90542799,1029.9,1028.4,0.64422518]
[1759364748958,0.90542799,1029.8,1028.4,0.64422518]
[1759364749257,0.86527895,1030.4,1028.3,0.64422518]
[1759364749461,1.7708972,1030.3,1028.4,0.64422518]
[1759364749757,0.90561825,1030.2,1028.2,0.81314287]
[1759364749958,0.90561825,1030.1,1028.2,0.81314287]